[Event "29th Czech Open-Rapid 2018"]
[Site "Pardubice"]
[Date "2018.07.18"]
[Round "3"]
[White "Annenkov, Kirill"]
[Black "Tarun V Kanth"]
[Result "0-1"]
[ECO "E01"]
[WhiteElo "2214"]
[BlackElo "2086"]
[Annotator "NA"]
[PlyCount "62"]
[EventDate "2018.07.18"]
[EventType "swiss"]
[EventCountry "CZE"]
[SourceTitle "playchess.com"]
[Source "ChessBase"]
[SourceQuality "1"]
[TimeControl "900+10"]

1. d4 {[%emt 0:00:00]} Nf6 {[%emt 0:00:00]} 2. c4 {[%emt 0:00:00]} e6 {[%emt 0:00:00]} 3. g3 {[%emt 0:00:00]} d5 {[%emt 0:00:00]} 4. Bg2 {[%emt 0:00:03]} Bb4+ {[%emt 0:00:00]} 5. Nd2 {[%emt 0:00:05]} O-O {[%emt 0:00:17]} 6. Ngf3 {[%emt 0:00:02]} dxc4 {[%emt 0:00:09]} 7. O-O {[%emt 0:00:04]} Nbd7 {[%emt 0:00:18]} 8. Nxc4 {[%emt 0:00:11]} Nb6 {[%emt 0:00:15]} 9. Qb3 {[%emt 0:00:34]} Be7 {[%emt 0:00:04]} 10. Rd1 {[%emt 0:00:10]} Bd7 {[%emt 0:00:09]} 11. Qc2 {[%emt 0:01:33]} Bc6 {[%emt 0:00:10]} 12. b3 {[%emt 0:00:35]} Be4 {[%emt 0:00:24]} 13. Qb2 {[%emt 0:00:13]} Qd5 {[%emt 0:01:11]} 14. Bf4 {[%emt 0:00:29]} Qh5 {[%emt 0:01:19]} 15. Nxb6 {[%emt 0:00:32]} cxb6 {[%emt 0:00:01]} 16. Rac1 {[%emt 0:00:15]} Nd5 {[%emt 0:00:06]} 17. Bd2 {[%emt 0:00:08]} Bf6 {[%emt 0:00:15]} 18. Be1 {[%emt 0:00:21]} Rfd8 {[%emt 0:00:25]} 19. Ne5 {[%emt 0:01:13]} Bxg2 {[%emt 0:00:18]} 20. Kxg2 {[%emt 0:00:03]} Bxe5 {[%emt 0:01:48]} 21. dxe5 {[%emt 0:00:02]} Rd7 {[%emt 0:00:07]} 22. Rd3 {[%emt 0:02:25]} Rad8 {[%emt 0:01:45]} 23. Rcd1 {[%emt 0:00:38]} h6 {[%emt 0:00:46]} 24. Kg1 {[%emt 0:00:17]} Qh3 {[%emt 0:00:30]} 25. Qd2 {[%emt 0:02:00]} g5 {[%emt 0:01:39]} 26. f3 {[%emt 0:01:15]} Kg7 {[%emt 0:01:03]} 27. Bf2 {[%emt 0:00:11]} Kh8 {[%emt 0:00:59]} 28. Qe1 {[%emt 0:00:17]} Nf4 {[%emt 0:02:08]} 29. gxf4 {[%emt 0:00:12]} gxf4 {[%emt 0:00:00]} 30. Qf1 {[%emt 0:00:19]} Rg8+ {[%emt 0:00:01]} 31. Kh1 {[%emt 0:00:01]} Rxd3 {[%emt 0:00:12]} 0-1

[Event "29th Czech Open-Rapid 2018"]
[Site "Pardubice"]
[Date "2018.07.18"]
[Round "3"]
[White "Zlatin, Alexander"]
[Black "Nehyba, Martin"]
[Result "1-0"]
[ECO "B22"]
[WhiteElo "2200"]
[BlackElo "2163"]
[Annotator "NA"]
[PlyCount "59"]
[EventDate "2018.07.18"]
[EventType "swiss"]
[EventCountry "CZE"]
[SourceTitle "playchess.com"]
[Source "ChessBase"]
[SourceQuality "1"]
[TimeControl "900+10"]

1. e4 {[%emt 0:00:00]} c5 {[%emt 0:00:00]} 2. c3 {[%emt 0:00:00]} d5 {[%emt 0:00:00]} 3. exd5 {[%emt 0:00:00]} Qxd5 {[%emt 0:00:00]} 4. Nf3 {[%emt 0:00:00]} Nc6 {[%emt 0:00:00]} 5. d4 {[%emt 0:00:00]} e5 {[%emt 0:00:00]} 6. Be3 {[%emt 0:01:38]} Bg4 {[%emt 0:00:08]} 7. c4 {[%emt 0:00:33]} Qd8 {[%emt 0:00:02]} 8. d5 {[%emt 0:00:11]} Nd4 {[%emt 0:00:01]} 9. Bxd4 {[%emt 0:00:37]} exd4 {[%emt 0:00:14]} 10. Be2 {[%emt 0:00:02]} Nf6 {[%emt 0:00:19]} 11. O-O {[%emt 0:00:25]} Bd6 {[%emt 0:00:03]} 12. Nxd4 {[%emt 0:00:25]} cxd4 {[%emt 0:01:18]} 13. Bxg4 {[%emt 0:00:01]} Qc7 {[%emt 0:00:01]} 14. Re1+ {[%emt 0:00:39]} Kf8 {[%emt 0:00:01]} 15. Qxd4 {[%emt 0:00:17]} Bxh2+ {[%emt 0:01:37]} 16. Kf1 {[%emt 0:00:16]} Nxg4 {[%emt 0:01:20]} 17. Qxg4 {[%emt 0:00:02]} Bf4 {[%emt 0:00:01]} 18. Na3 {[%emt 0:00:51]} h5 {[%emt 0:00:02]} 19. Qe2 {[%emt 0:00:11]} h4 {[%emt 0:02:49]} 20. Nb5 {[%emt 0:00:11]} Qc5 {[%emt 0:00:01]} 21. Qe4 {[%emt 0:00:36]} a6 {[%emt 0:01:06]} 22. b4 {[%emt 0:02:25]} Qxb4 {[%emt 0:00:15]} 23. Rab1 {[%emt 0:00:01]} Qc5 {[%emt 0:04:03]} 24. Qxf4 {[%emt 0:00:03]} axb5 {[%emt 0:00:01]} 25. Rxb5 {[%emt 0:00:02]} Qc8 {[%emt 0:00:02]} 26. Kg1 {[%emt 0:03:30]} h3 {[%emt 0:00:41]} 27. g3 {[%emt 0:00:01]} h2+ {[%emt 0:01:09]} 28. Kh1 {[%emt 0:00:01]} Rxa2 {[%emt 0:00:03]} 29. Rc5 {[%emt 0:00:21]} Qd8 {[%emt 0:01:07]} 30. Qd6+ {[%emt 0:00:20]} 1-0

[Event "29th Czech Open-Rapid 2018"]
[Site "Pardubice"]
[Date "2018.07.18"]
[Round "3"]
[White "Lushnikov, Evgeny"]
[Black "Zarovs, Aleksandrs"]
[Result "1-0"]
[ECO "B01"]
[WhiteElo "2136"]
[BlackElo "1836"]
[Annotator "NA"]
[PlyCount "89"]
[EventDate "2018.07.18"]
[EventType "swiss"]
[EventCountry "CZE"]
[SourceTitle "playchess.com"]
[Source "ChessBase"]
[SourceQuality "1"]
[TimeControl "900+10"]

1. e4 {[%emt 0:00:00]} d5 {[%emt 0:00:00]} 2. exd5 {[%emt 0:00:00]} Qxd5 {[%emt 0:00:00]} 3. Nc3 {[%emt 0:00:00]} Qa5 {[%emt 0:00:00]} 4. h3 {[%emt 0:00:00]} c6 {[%emt 0:00:00]} 5. d4 {[%emt 0:00:00]} Bf5 {[%emt 0:00:01]} 6. Nf3 {[%emt 0:00:00]} e6 {[%emt 0:00:14]} 7. Bc4 {[%emt 0:00:08]} Nf6 {[%emt 0:00:06]} 8. O-O {[%emt 0:00:05]} Bd6 {[%emt 0:00:16]} 9. Bg5 {[%emt 0:00:22]} Nbd7 {[%emt 0:00:05]} 10. a3 {[%emt 0:00:08]} O-O {[%emt 0:00:03]} 11. b4 {[%emt 0:00:34]} Qc7 {[%emt 0:00:03]} 12. Qe2 {[%emt 0:00:26]} Nd5 {[%emt 0:00:08]} 13. Bxd5 {[%emt 0:01:54]} cxd5 {[%emt 0:00:39]} 14. Nb5 {[%emt 0:00:01]} Qb8 {[%emt 0:00:02]} 15. c4 {[%emt 0:02:17]} dxc4 {[%emt 0:00:24]} 16. Qxc4 {[%emt 0:00:07]} Nb6 {[%emt 0:00:12]} 17. Qb3 {[%emt 0:00:05]} a6 {[%emt 0:00:22]} 18. Nxd6 {[%emt 0:00:56]} Qxd6 {[%emt 0:00:03]} 19. Rac1 {[%emt 0:00:16]} Rac8 {[%emt 0:00:10]} 20. Bh4 {[%emt 0:00:21]} Be4 {[%emt 0:00:48]} 21. Qe3 {[%emt 0:05:06]} Bd5 {[%emt 0:00:31]} 22. Bg3 {[%emt 0:00:28]} Qe7 {[%emt 0:00:23]} 23. Ne5 {[%emt 0:01:20]} f6 {[%emt 0:00:33]} 24. Rxc8 {[%emt 0:01:26]} Rxc8 {[%emt 0:00:14]} 25. Nd3 {[%emt 0:00:01]} Rc3 {[%emt 0:00:56]} 26. Rc1 {[%emt 0:00:09]} Nc4 {[%emt 0:00:31]} 27. Rxc3 {[%emt 0:01:26]} Nxe3 {[%emt 0:00:12]} 28. fxe3 {[%emt 0:00:16]} h6 {[%emt 0:00:40]} 29. Rc7 {[%emt 0:00:10]} Qe8 {[%emt 0:00:24]} 30. Nc5 {[%emt 0:00:11]} Qg6 {[%emt 0:00:11]} 31. Kh2 {[%emt 0:01:45]} Qc2 {[%emt 0:00:12]} 32. e4 {[%emt 0:00:01]} Bxe4 {[%emt 0:00:09]} 33. Nxe4 {[%emt 0:00:01]} Qxe4 {[%emt 0:00:02]} 34. Rd7 {[%emt 0:00:03]} g5 {[%emt 0:00:38]} 35. a4 {[%emt 0:00:22]} h5 {[%emt 0:00:05]} 36. b5 {[%emt 0:00:09]} axb5 {[%emt 0:00:10]} 37. axb5 {[%emt 0:00:00]} h4 {[%emt 0:00:02]} 38. Bc7 {[%emt 0:00:03]} Qf5 {[%emt 0:00:34]} 39. b6 {[%emt 0:00:14]} Qe4 {[%emt 0:00:23]} 40. Kg1 {[%emt 0:00:23]} g4 {[%emt 0:01:18]} 41. hxg4 {[%emt 0:00:02]} Qxg4 {[%emt 0:00:03]} 42. Kh2 {[%emt 0:00:01]} Qe4 {[%emt 0:00:28]} 43. g3 {[%emt 0:00:35]} hxg3+ {[%emt 0:00:45]} 44. Kxg3 {[%emt 0:00:09]} Kf8 {[%emt 0:01:40]} 45. Rd8+ 1-0

[Event "29th Czech Open-Rapid 2018"]
[Site "Pardubice"]
[Date "2018.07.18"]
[Round "3"]
[White "Brejnik, Gustav"]
[Black "Freisler, Pavel"]
[Result "0-1"]
[ECO "E09"]
[WhiteElo "2134"]
[BlackElo "2246"]
[Annotator "NA"]
[PlyCount "78"]
[EventDate "2018.07.18"]
[EventType "swiss"]
[EventCountry "CZE"]
[SourceTitle "playchess.com"]
[Source "ChessBase"]
[SourceQuality "1"]
[TimeControl "900+10"]

1. d4 {[%emt 0:00:00]} Nf6 {[%emt 0:00:00]} 2. c4 {[%emt 0:00:00]} e6 {[%emt 0:00:00]} 3. g3 {[%emt 0:00:00]} d5 {[%emt 0:00:15]} 4. Nf3 {[%emt 0:00:00]} Bb4+ {[%emt 0:00:06]} 5. Bd2 {[%emt 0:00:01]} Be7 {[%emt 0:00:01]} 6. Bg2 {[%emt 0:00:00]} O-O {[%emt 0:00:00]} 7. O-O {[%emt 0:00:00]} Nbd7 {[%emt 0:00:04]} 8. Qc2 {[%emt 0:00:11]} c6 {[%emt 0:00:17]} 9. Bf4 {[%emt 0:00:20]} Nh5 {[%emt 0:00:08]} 10. Bc1 {[%emt 0:00:10]} Nhf6 {[%emt 0:00:03]} 11. Nbd2 {[%emt 0:00:08]} b6 {[%emt 0:00:18]} 12. e4 {[%emt 0:00:44]} Ba6 {[%emt 0:00:32]} 13. Re1 {[%emt 0:00:41]} Rc8 {[%emt 0:00:23]} 14. Qa4 {[%emt 0:00:19]} Bxc4 {[%emt 0:00:04]} 15. Nxc4 {[%emt 0:00:01]} dxc4 {[%emt 0:00:01]} 16. Qxc4 {[%emt 0:00:02]} c5 {[%emt 0:00:47]} 17. d5 {[%emt 0:00:59]} exd5 {[%emt 0:00:04]} 18. exd5 {[%emt 0:00:02]} Bd6 {[%emt 0:00:01]} 19. Bd2 {[%emt 0:00:28]} Qc7 {[%emt 0:00:16]} 20. Bc3 {[%emt 0:00:05]} Rfe8 {[%emt 0:00:04]} 21. Bh3 {[%emt 0:00:19]} Rcd8 {[%emt 0:00:17]} 22. Rad1 {[%emt 0:01:40]} Qb7 {[%emt 0:00:54]} 23. a4 {[%emt 0:00:19]} Rxe1+ {[%emt 0:00:18]} 24. Nxe1 {[%emt 0:00:54]} Ne5 {[%emt 0:01:23]} 25. Qe2 {[%emt 0:01:46]} Re8 {[%emt 0:00:43]} 26. Bg2 {[%emt 0:01:28]} Qc7 {[%emt 0:00:36]} 27. Nf3 {[%emt 0:01:24]} h6 {[%emt 0:00:56]} 28. Qb5 {[%emt 0:00:42]} Re7 {[%emt 0:01:20]} 29. Nh4 {[%emt 0:03:06]} g6 {[%emt 0:00:19]} 30. Qb3 {[%emt 0:00:13]} c4 {[%emt 0:00:42]} 31. Qc2 {[%emt 0:00:27]} Bc5 {[%emt 0:00:22]} 32. h3 {[%emt 0:00:45]} Qd6 {[%emt 0:00:20]} 33. Kf1 {[%emt 0:01:04]} Nd3 {[%emt 0:00:18]} 34. Rxd3 {[%emt 0:00:32]} cxd3 {[%emt 0:00:03]} 35. Qxd3 {[%emt 0:00:01]} Kh7 {[%emt 0:00:26]} 36. b3 {[%emt 0:01:30]} Bb4 {[%emt 0:00:13]} 37. Bxb4 {[%emt 0:00:24]} Qxb4 {[%emt 0:00:02]} 38. Nf3 {[%emt 0:00:11]} Qc5 {[%emt 0:01:23]} 39. Nd2 {[%emt 0:00:16]} Qc1# {[%emt 0:00:04]} 0-1

[Event "29th Czech Open-Rapid 2018"]
[Site "Pardubice"]
[Date "2018.07.18"]
[Round "3"]
[White "Sinauridze, Simons"]
[Black "Zdechovsky, Tobias"]
[Result "*"]
[ECO "B31"]
[WhiteElo "2088"]
[BlackElo "1675"]
[Annotator "NA RC"]
[PlyCount "72"]
[EventDate "2018.07.18"]
[EventType "swiss"]
[EventCountry "CZE"]
[SourceTitle "playchess.com"]
[Source "ChessBase"]
[SourceQuality "1"]
[TimeControl "900+10"]

1. e4 {[%emt 0:00:00]} c5 {[%emt 0:00:00]} 2. Nf3 {[%emt 0:00:00]} Nc6 {[%emt 0:00:00]} 3. Bb5 {[%emt 0:00:00]} g6 {[%emt 0:00:00]} 4. O-O {[%emt 0:00:01]} Bg7 $11 {[%emt 0:00:00]} 5. c3 {[%emt 0:00:11]} Nf6 {[%emt 0:00:00]} 6. Re1 {[%emt 0:00:01]} O-O {[%emt 0:00:25]} 7. d4 {[%emt 0:00:05]} cxd4 {[%emt 0:00:03]} 8. cxd4 {[%emt 0:00:03]} d5 {[%emt 0:00:08]} 9. e5 {[%emt 0:00:04]} Ne4 {[%emt 0:00:21]} 10. h3 {[%emt 0:00:33]} f5 {[%emt 0:00:21]} 11. Nc3 {[%emt 0:00:52]} Qb6 {[%emt 0:00:46]} 12. a4 {[%emt 0:00:52]} e6 {[%emt 0:00:40]} 13. Ne2 {[%emt 0:01:00]} Qd8 {[%emt 0:03:11]} 14. h4 {[%emt 0:00:57]} h6 {[%emt 0:00:42]} 15. Bd3 {[%emt 0:00:16]} Nb4 {[%emt 0:00:53]} 16. Bb1 {[%emt 0:00:13]} a5 {[%emt 0:01:31]} 17. Nf4 {[%emt 0:00:58]} Kh7 {[%emt 0:00:47]} 18. Ra3 {[%emt 0:00:22]} g5 {[%emt 0:00:35]} 19. hxg5 {[%emt 0:00:10]} hxg5 {[%emt 0:00:02]} 20. Bxe4 {[%emt 0:00:14]} dxe4 {[%emt 0:00:17]} 21. Nxg5+ {[%emt 0:00:04]} Qxg5 {[%emt 0:00:53]} 22. Nxe6 {[%emt 0:00:08]} Qe7 {[%emt 0:00:31]} 23. Nxf8+ {[%emt 0:00:48]} Qxf8 {[%emt 0:00:28]} 24. Qh5+ {[%emt 0:01:13]} Kg8 {[%emt 0:00:45]} 25. Rh3 {[%emt 0:00:31]} Nd3 {[%emt 0:00:42]} 26. Qh7+ {[%emt 0:00:41]} Kf7 {[%emt 0:00:01]} 27. Rxd3 {[%emt 0:02:44]} exd3 {[%emt 0:00:10]} 28. d5 {[%emt 0:00:02]} Qh8 {[%emt 0:03:18]} 29. e6+ {[%emt 0:00:05]} Kf6 {[%emt 0:00:01]} 30. Qxh8 {[%emt 0:01:55]} Bxh8 {[%emt 0:00:02]} 31. Bf4 {[%emt 0:00:02]} Kg6 {[%emt 0:01:44]} 32. d6 {[%emt 0:00:07]} Bxb2 {[%emt 0:00:43]} 33. d7 {[%emt 0:00:13]} Bxd7 {[%emt 0:00:02]} 34. exd7 {[%emt 0:00:02]} Rd8 {[%emt 0:00:21]} 35. Re6+ {[%emt 0:00:02]} Kf7 {[%emt 0:00:03]} 36. Rd6 {[%emt 0:00:01]} Ke7 {[%emt 0:00:08]} *

[Event "29th Czech Open-Rapid 2018"]
[Site "Pardubice"]
[Date "2018.07.18"]
[Round "3"]
[White "Krouzel, Jaroslav"]
[Black "Roskova, Katerina"]
[Result "1-0"]
[ECO "D91"]
[WhiteElo "2079"]
[BlackElo "1950"]
[Annotator "NA"]
[PlyCount "81"]
[EventDate "2018.07.18"]
[EventType "swiss"]
[EventCountry "CZE"]
[SourceTitle "playchess.com"]
[Source "ChessBase"]
[SourceQuality "1"]
[TimeControl "900+10"]

1. d4 {[%emt 0:00:00]} Nf6 {[%emt 0:00:00]} 2. c4 {[%emt 0:00:00]} g6 {[%emt 0:00:00]} 3. Nc3 {[%emt 0:00:00]} d5 {[%emt 0:00:01]} 4. Nf3 {[%emt 0:00:00]} Bg7 {[%emt 0:00:04]} 5. Bg5 {[%emt 0:00:01]} Ne4 {[%emt 0:01:17]} 6. cxd5 {[%emt 0:00:10]} Nxg5 {[%emt 0:00:20]} 7. Nxg5 {[%emt 0:00:03]} e5 {[%emt 0:01:23]} 8. Nf3 {[%emt 0:00:23]} exd4 {[%emt 0:00:05]} 9. Nxd4 {[%emt 0:00:03]} O-O {[%emt 0:00:10]} 10. e3 {[%emt 0:00:08]} Re8 {[%emt 0:02:03]} 11. Be2 {[%emt 0:00:05]} Nd7 {[%emt 0:01:06]} 12. O-O {[%emt 0:00:20]} Nf6 {[%emt 0:00:39]} 13. Bf3 {[%emt 0:00:05]} h5 {[%emt 0:00:54]} 14. Rc1 {[%emt 0:00:31]} Bg4 {[%emt 0:00:46]} 15. h3 {[%emt 0:00:07]} Bxf3 {[%emt 0:01:17]} 16. Qxf3 {[%emt 0:00:05]} a6 {[%emt 0:00:17]} 17. Rfd1 {[%emt 0:00:13]} Qd7 {[%emt 0:00:18]} 18. Nb3 {[%emt 0:00:54]} Rad8 {[%emt 0:00:30]} 19. Nc5 {[%emt 0:01:42]} Qc8 {[%emt 0:00:05]} 20. d6 {[%emt 0:02:13]} Rxd6 {[%emt 0:01:11]} 21. Rxd6 {[%emt 0:00:10]} cxd6 {[%emt 0:00:01]} 22. Nxb7 {[%emt 0:00:53]} Re6 {[%emt 0:00:11]} 23. Ne2 {[%emt 0:00:44]} Qd7 {[%emt 0:00:24]} 24. Qc6 {[%emt 0:01:42]} Qxc6 {[%emt 0:00:19]} 25. Rxc6 {[%emt 0:00:02]} Nd5 {[%emt 0:00:35]} 26. Rxa6 {[%emt 0:01:28]} Bxb2 {[%emt 0:00:37]} 27. Rxd6 {[%emt 0:00:31]} Re7 {[%emt 0:00:55]} 28. Rxd5 {[%emt 0:00:15]} Rxb7 {[%emt 0:00:02]} 29. Ra5 {[%emt 0:00:24]} Kg7 {[%emt 0:00:16]} 30. f4 {[%emt 0:00:05]} Rc7 {[%emt 0:00:18]} 31. Kf2 {[%emt 0:00:22]} Rc2 {[%emt 0:00:25]} 32. Kf3 {[%emt 0:00:03]} f6 {[%emt 0:00:14]} 33. a4 {[%emt 0:00:13]} Kf7 {[%emt 0:01:01]} 34. Ra8 {[%emt 0:00:19]} f5 {[%emt 0:00:26]} 35. a5 {[%emt 0:00:08]} Ba3 {[%emt 0:01:18]} 36. a6 {[%emt 0:00:59]} Ra2 {[%emt 0:00:09]} 37. Nc3 {[%emt 0:01:25]} Ra1 {[%emt 0:00:06]} 38. Nb5 {[%emt 0:00:09]} Bc5 {[%emt 0:00:02]} 39. Rc8 {[%emt 0:01:10]} Bb6 {[%emt 0:00:13]} 40. a7 {[%emt 0:00:09]} Bxa7 {[%emt 0:00:25]} 41. Rc7+ {[%emt 0:00:02]} 1-0

[Event "29th Czech Open-Rapid 2018"]
[Site "Pardubice"]
[Date "2018.07.18"]
[Round "3"]
[White "Zdrazil, Tomas"]
[Black "Alekseev, Mikhail G"]
[Result "1-0"]
[ECO "B15"]
[WhiteElo "2065"]
[BlackElo "1855"]
[Annotator "NA"]
[PlyCount "53"]
[EventDate "2018.07.18"]
[EventType "swiss"]
[EventCountry "CZE"]
[SourceTitle "playchess.com"]
[Source "ChessBase"]
[SourceQuality "1"]
[TimeControl "900+10"]

1. e4 {[%emt 0:00:00]} c6 {[%emt 0:00:00]} 2. d4 {[%emt 0:00:00]} d5 {[%emt 0:00:00]} 3. Nc3 {[%emt 0:00:00]} a6 {[%emt 0:00:00]} 4. Nf3 {[%emt 0:00:00]} Bg4 {[%emt 0:00:00]} 5. Be2 {[%emt 0:01:13]} e6 {[%emt 0:00:06]} 6. h3 {[%emt 0:00:16]} Bh5 {[%emt 0:00:10]} 7. O-O {[%emt 0:00:14]} Nf6 {[%emt 0:00:16]} 8. exd5 {[%emt 0:06:08]} cxd5 {[%emt 0:00:59]} 9. Bf4 {[%emt 0:00:05]} Bxf3 {[%emt 0:01:06]} 10. Bxf3 {[%emt 0:00:02]} Nc6 {[%emt 0:00:13]} 11. Ne2 {[%emt 0:00:31]} Bd6 {[%emt 0:00:23]} 12. c3 {[%emt 0:00:07]} O-O {[%emt 0:00:23]} 13. Qd2 {[%emt 0:01:11]} b5 {[%emt 0:00:54]} 14. Nc1 {[%emt 0:01:38]} Bxf4 {[%emt 0:01:08]} 15. Qxf4 {[%emt 0:00:02]} Qb8 {[%emt 0:00:23]} 16. Qxb8 {[%emt 0:00:21]} Raxb8 {[%emt 0:00:23]} 17. a3 {[%emt 0:00:03]} a5 {[%emt 0:00:58]} 18. Nd3 {[%emt 0:00:02]} b4 {[%emt 0:01:15]} 19. axb4 {[%emt 0:00:03]} axb4 {[%emt 0:00:01]} 20. Ra6 {[%emt 0:00:08]} Rfc8 {[%emt 0:00:05]} 21. Rfa1 {[%emt 0:01:30]} bxc3 {[%emt 0:00:08]} 22. bxc3 {[%emt 0:00:02]} g6 {[%emt 0:01:55]} 23. R1a3 {[%emt 0:01:01]} Kg7 {[%emt 0:01:33]} 24. g3 {[%emt 0:00:01]} Nd7 {[%emt 0:00:27]} 25. Kg2 {[%emt 0:00:19]} Nb6 {[%emt 0:00:31]} 26. Rb3 {[%emt 0:01:20]} Nc4 {[%emt 0:00:24]} 27. Rxc6 {[%emt 0:00:26]} 1-0

[Event "29th Czech Open-Rapid 2018"]
[Site "Pardubice"]
[Date "2018.07.18"]
[Round "3"]
[White "Kusa, Jakub"]
[Black "Skliarov, Viktor"]
[Result "0-1"]
[ECO "B33"]
[WhiteElo "2061"]
[BlackElo "2357"]
[Annotator "NA"]
[PlyCount "76"]
[EventDate "2018.07.18"]
[EventType "swiss"]
[EventCountry "CZE"]
[SourceTitle "playchess.com"]
[Source "ChessBase"]
[SourceQuality "1"]
[TimeControl "900+10"]

1. e4 {[%emt 0:00:00]} c5 {[%emt 0:00:00]} 2. Nf3 {[%emt 0:00:00]} Nc6 {[%emt 0:00:00]} 3. d4 {[%emt 0:00:00]} cxd4 {[%emt 0:00:00]} 4. Nxd4 {[%emt 0:00:03]} Nf6 {[%emt 0:00:00]} 5. Nc3 {[%emt 0:00:03]} e5 {[%emt 0:00:00]} 6. Ndb5 {[%emt 0:00:03]} d6 {[%emt 0:00:00]} 7. Bg5 {[%emt 0:00:02]} a6 {[%emt 0:00:00]} 8. Na3 {[%emt 0:00:01]} b5 {[%emt 0:00:01]} 9. Nd5 {[%emt 0:00:03]} Be7 {[%emt 0:00:01]} 10. Bxf6 {[%emt 0:00:02]} Bxf6 {[%emt 0:00:02]} 11. c4 {[%emt 0:00:02]} b4 {[%emt 0:00:05]} 12. Nc2 {[%emt 0:00:02]} a5 {[%emt 0:00:01]} 13. g3 {[%emt 0:00:13]} Bg5 {[%emt 0:00:01]} 14. Bg2 {[%emt 0:00:15]} O-O {[%emt 0:00:02]} 15. O-O {[%emt 0:00:07]} Nb8 {[%emt 0:00:06]} 16. Nce3 {[%emt 0:00:54]} Na6 {[%emt 0:00:20]} 17. b3 {[%emt 0:00:16]} Nc5 {[%emt 0:00:03]} 18. f4 {[%emt 0:00:36]} exf4 {[%emt 0:01:09]} 19. gxf4 {[%emt 0:00:11]} Bh6 {[%emt 0:00:12]} 20. Qh5 {[%emt 0:00:52]} a4 {[%emt 0:00:52]} 21. Rad1 {[%emt 0:02:18]} axb3 {[%emt 0:01:54]} 22. axb3 {[%emt 0:00:08]} Ra3 {[%emt 0:00:09]} 23. e5 {[%emt 0:00:39]} dxe5 {[%emt 0:00:22]} 24. fxe5 {[%emt 0:00:42]} Qg5 {[%emt 0:00:05]} 25. Qxg5 {[%emt 0:01:22]} Bxg5 {[%emt 0:00:01]} 26. Nc2 {[%emt 0:00:06]} Rxb3 {[%emt 0:00:17]} 27. Ncxb4 {[%emt 0:00:18]} h5 {[%emt 0:03:49]} 28. Nc6 {[%emt 0:00:52]} Re8 {[%emt 0:01:06]} 29. Nd4 {[%emt 0:00:57]} Rb2 {[%emt 0:00:34]} 30. Nc6 {[%emt 0:01:39]} Bd7 {[%emt 0:03:04]} 31. Ndb4 {[%emt 0:00:39]} Bg4 {[%emt 0:00:20]} 32. Rb1 {[%emt 0:01:30]} Rd2 {[%emt 0:00:31]} 33. Bd5 {[%emt 0:00:52]} Ne6 {[%emt 0:00:13]} 34. Bxe6 {[%emt 0:00:55]} Rxe6 {[%emt 0:00:22]} 35. Nd5 {[%emt 0:00:48]} Rxc6 {[%emt 0:00:18]} 36. Rb8+ {[%emt 0:00:01]} Kh7 {[%emt 0:00:02]} 37. Rxf7 {[%emt 0:00:49]} Rxc4 {[%emt 0:00:05]} 38. Rb1 {[%emt 0:00:02]} Rxd5 {[%emt 0:00:07]} 0-1